bitfinex/quotes_SOLUSD_20211001
["timestamp","ask_amount","ask_price","bid_price","bid_amount"]
[1633086319273,1.9663146,147.53,147.46,24.19519897]
[1633086319873,1.96644886,147.52,147.46,24.19519897]
[1633086320472,1.95538453,147.53,147.46,24.19519897]
[1633086320672,1.96326151,147.54,147.46,24.19519897]
[1633086320873,1.96326151,147.54,147.45,4.2663366]
[1633086321073,1.95753048,147.52,147.43,1.96639569]
[1633086321273,1.95342215,147.5,147.41,4.26652035]
[1633086321673,1.94567176,147.51,147.42,1.9665211]
[1633086321873,1.93634204,147.5,147.41,30.68252757]
[1633086322074,1.93230822,147.49,147.41,26.41596566]
[1633086322275,1.93441702,147.5,147.41,28.38258102]
[1633086323577,1.93441702,147.5,147.4,1.96665693]
[1633086323778,1.9256046,147.49,147.4,1.96665693]
[1633086323978,1.90615753,147.47,147.37,1.9673643]
[1633086324176,23.86652807,147.5,147.37,1.9673643]
[1633086324177,1.90928148,147.46,147.37,1.9673643]
[1633086324376,18.54865747,147.46,147.37,1.9673643]
[1633086324578,20.46742342,147.46,147.37,1.9673643]
[1633086324779,1.90891839,147.44,147.37,1.9673643]
[1633086324977,1.9150641,147.43,147.33,1.96792958]
[1633086325180,20.46372157,147.43,147.34,1.9680512]
[1633086325377,20.46372157,147.43,147.33,1.96791515]
[1633086325378,18.54865747,147.42,147.33,1.96791515]
[1633086325579,2.3,147.41,147.33,1.96791515]
[1633086325780,2.3,147.41,147.32,1.96796578]
[1633086325977,18.54865747,147.4,147.31,1.9680464]
[1633086326180,2.3,147.39,147.3,1.96817913]
[1633086326577,2.3,147.39,147.31,1.96818278]
[1633086326578,20.84865747,147.39,147.31,1.96818278]
[1633086326778,20.84865747,147.39,147.32,26.74458476]
[1633086328179,18.54865747,147.39,147.32,26.74458476]
[1633086328379,1.93036268,147.42,147.32,28.71259429]
[1633086328582,20.49979188,147.44,147.36,23.92280993]
[1633086329179,18.54865747,147.44,147.36,25.89049933]
[1633086329580,18.54865747,147.44,147.34,1.96780168]
[1633086329780,4.22407916,147.43,147.34,1.96780168]
[1633086329982,4.22407916,147.43,147.29,436.63951847]
[1633086329983,1.91159585,147.42,147.32,1.96801635]
[1633086330180,1.91159585,147.42,147.3,1.96813129]
[1633086330181,1.89791346,147.4,147.3,1.96813129]
[1633086330383,1.91518785,147.39,147.31,25.40259522]
[1633086330581,4.22472581,147.41,147.31,27.3706218]
[1633086330780,4.22472581,147.41,147.31,1.96802658]
[1633086330980,23.56782772,147.41,147.31,1.96802658]
[1633086331183,1.92625804,147.4,147.31,1.96802658]
[1633086332381,21.26935995,147.4,147.31,25.58535246]
[1633086332781,21.26935995,147.4,147.31,1.96802658]
[1633086333782,21.26935995,147.4,147.32,21.35606612]
[1633086333984,1.92625804,147.4,147.32,21.35606612]
[1633086341088,1.92625804,147.4,147.32,532.09461829]
[1633086342790,1.92625804,147.4,147.32,21.35606612]
[1633086345294,4.77625804,147.4,147.32,21.35606612]
[1633086345793,4.77625804,147.4,147.31,1.96802658]
[1633086346197,6.70251609,147.43,147.32,74.0]
[1633086346396,6.70251609,147.43,147.33,2.85]
[1633086346596,3.85251609,147.43,147.33,2.85]
[1633086346805,3.85251609,147.43,147.34,23.50338804]
[1633086347000,3.85251609,147.43,147.35,2.85]
[1633086348606,3.85251609,147.43,147.31,4.81802658]
[1633086349421,3.85251609,147.43,147.32,28.75682113]
[1633086356627,2.85,147.42,147.31,1.96802658]
[1633086356827,21.09819356,147.42,147.31,1.96802658]
[1633086357628,21.09819356,147.42,147.32,24.24576436]
[1633086358429,21.09819356,147.42,147.31,1.96802658]
[1633086359531,21.09819356,147.42,147.32,23.35888068]
[1633086360032,21.09819356,147.42,147.31,1.96802658]
[1633086360433,18.24819356,147.41,147.31,1.96802658]
[1633086360634,21.09819356,147.41,147.31,1.96802658]
[1633086361035,18.24819356,147.4,147.31,1.96802658]
[1633086361235,2.85,147.39,147.31,1.96802658]
[1633086361834,18.24819356,147.38,147.31,1.96802658]
[1633086362035,2.85,147.37,147.31,1.96802658]
[1633086367542,38.08609356,147.37,147.31,1.96802658]
[1633086367744,66.83360407,147.37,147.31,1.96802658]
[1633086368545,91.0,147.36,147.29,2.91678291]
[1633086368743,2.85,147.35,147.29,2.91678291]
[1633086368945,21.09819356,147.35,147.29,2.91678291]
[1633086369143,18.24819356,147.34,147.29,2.91678291]
[1633086369345,2.85,147.33,147.29,2.91678291]
[1633086369744,21.09819356,147.33,147.29,2.91678291]
[1633086370243,21.09819356,147.33,147.3,25.9290981]
[1633086370644,2.85,147.33,147.3,25.9290981]
[1633086371043,2.85,147.33,147.29,2.91678291]
[1633086372044,2.85,147.33,147.3,28.92498051]
[1633086379854,2.85,147.33,147.29,2.91678291]
[1633086380855,2.85,147.33,147.29,29.82822862]
[1633086382657,2.85,147.33,147.29,2.91678291]
[1633086383756,2.85,147.33,147.29,29.32135163]
[1633086384960,2.85,147.36,147.29,29.32135163]
[1633086385361,2.85,147.39,147.29,29.32135163]
[1633086387760,2.85,147.39,147.29,28.82135163]
[1633086388164,2.35,147.39,147.29,28.82135163]
[1633086388463,2.35,147.39,147.29,31.67135163]
[1633086388661,3.85251609,147.43,147.29,31.67135163]
[1633086388863,3.85251609,147.43,147.29,58.08400237]
[1633086389263,3.85251609,147.43,147.3,0.02088]
[1633086389462,3.85251609,147.43,147.31,2.85]
[1633086389663,3.85251609,147.43,147.31,2.87088]
[1633086390663,1.609e-05,147.43,147.32,0.02088]
[1633086390864,5.773561,147.47,147.35,26.59757256]
[1633086391063,5.773561,147.47,147.38,519.39611003]
[1633086391263,5.773561,147.47,147.38,522.24611003]
[1633086394866,5.273561,147.47,147.38,522.24611003]
[1633086395265,2.85,147.46,147.38,519.39611003]
[1633086395466,2.85,147.46,147.35,26.59757256]
[1633086396866,2.85,147.46,147.35,29.44757256]
[1633086397068,5.273561,147.47,147.35,29.44757256]
[1633086397468,8.123561,147.47,147.35,29.44757256]
[1633086397675,8.123561,147.47,147.35,528.20958781]
[1633086398468,36.87107151,147.47,147.35,528.20958781]
[1633086398669,53.14037618,147.47,147.35,525.35958781]
[1633086399872,24.39286567,147.47,147.35,525.35958781]
[1633086400673,24.39286567,147.47,147.35,528.20958781]
[1633086401876,24.39286567,147.47,147.36,74.5892]
[1633086402074,24.39286567,147.47,147.37,2.85]
[1633086403277,53.14037618,147.47,147.37,2.85]
[1633086408584,53.14037618,147.47,147.35,498.76201525]
[1633086408982,53.14037618,147.47,147.31,2.85]
[1633086409182,87.08037618,147.47,147.31,2.85]
[1633086409587,73.8191,147.46,147.32,24.52437372]
[1633086409783,2.85,147.45,147.32,24.52437372]
[1633086409981,47.91159296,147.45,147.32,24.52437372]
[1633086410180,28.74751051,147.44,147.32,24.52437372]
[1633086410382,2.85,147.43,147.32,24.52437372]
[1633086410690,19.16408245,147.43,147.32,24.52437372]
[1633086410884,16.31408245,147.42,147.32,24.52437372]
[1633086411084,2.85,147.41,147.32,24.52437372]
[1633086411282,2.85,147.41,147.29,5.26678291]
[1633086412283,2.85,147.41,147.3,28.99441923]
[1633086412686,19.16408245,147.41,147.3,28.99441923]
[1633086413083,19.16408245,147.41,147.29,2.41678291]
[1633086413284,28.74751051,147.4,147.29,2.41678291]
[1633086413490,2.85,147.39,147.29,2.41678291]
[1633086413691,19.32874911,147.39,147.29,2.41678291]
[1633086413885,46.67070406,147.38,147.29,2.41678291]
[1633086414086,2.85,147.37,147.29,2.41678291]
[1633086414284,49.52070406,147.37,147.29,2.41678291]
[1633086416287,16.47874911,147.36,147.29,2.41678291]
[1633086416484,2.85,147.35,147.29,2.41678291]
[1633086416684,2.85,147.35,147.28,6.78637879]
[1633086417284,33.04195495,147.35,147.28,6.78637879]
[1633086417684,49.52070406,147.35,147.28,6.78637879]
[1633086420086,49.52070406,147.35,147.29,26.67134684]
[1633086420286,19.32874911,147.35,147.29,26.67134684]
[1633086421088,2.85,147.35,147.29,26.67134684]
[1633086421289,2.85,147.4,147.29,26.67134684]
[1633086421888,2.85,147.4,147.3,2.85]
[1633086422290,2.85,147.4,147.31,0.02088]
[1633086423687,2.85,147.44,147.32,2.85]
[1633086426089,33.04195495,147.44,147.32,2.85]
[1633086426492,33.04195495,147.44,147.29,29.52134684]
[1633086426691,77.79611207,147.44,147.29,29.52134684]
[1633086426892,77.79611207,147.44,147.29,26.67134684]
[1633086427294,33.94,147.43,147.29,26.67134684]
[1633086427493,2.85,147.42,147.29,26.67134684]
[1633086427693,19.21319356,147.42,147.29,26.67134684]
[1633086428295,19.21319356,147.42,147.29,29.52134684]
[1633086428496,0.02088,147.45,147.29,29.52134684]
[1633086428695,2.85,147.46,147.3,28.71610504]
[1633086428895,2.85,147.46,147.31,2.85]
[1633086429097,2.85,147.46,147.31,2.87088]
[1633086429296,5.273561,147.47,147.32,28.71610504]
[1633086429494,5.273561,147.47,147.33,2.85]
[1633086429695,5.273561,147.47,147.34,28.83678437]
[1633086429696,4.307461,147.47,147.34,28.83678437]
[1633086429896,2.85,147.5,147.36,94.0]
[1633086430096,2.85,147.53,147.38,29.48276396]
[1633086430296,2.85,147.53,147.47,50.0]
[1633086431497,2.85,147.53,147.47,537.70622948]
[1633086434700,2.85,147.57,147.47,537.70622948]
[1633086437903,58.72683569,147.57,147.47,537.72752708]
[1633086438101,58.72683569,147.57,147.47,537.70622948]
[1633086438505,29.79195495,147.57,147.48,21.96426769]
[1633086438907,2.85,147.57,147.48,21.96426769]
[1633086444111,2.85,147.6,147.48,21.96426769]
[1633086444513,2.85,147.6,147.49,2.85]
[1633086445335,40.43969668,147.72,147.65,9.71679743]
[1633086445516,2.85,147.67,147.65,9.71679743]
[1633086445720,2.85,147.7,147.66,12.98394239]
[1633086445915,2.85,147.7,147.66,6.03659272]
[1633086446118,119.35,147.7,147.66,6.03659272]
[1633086446521,116.5,147.7,147.66,6.03659272]
[1633086447514,116.5,147.7,147.66,8.88659272]
[1633086448915,2.85,147.78,147.66,8.88659272]
[1633086449315,116.5,147.8,147.66,8.88659272]
[1633086450317,116.5,147.8,147.67,0.0212976]
[1633086450515,116.5,147.8,147.68,2.85]
[1633086450716,116.5,147.8,147.69,0.0212976]
[1633086450917,90.44332289,147.8,147.7,2.85]
[1633086451119,2.85,147.91,147.72,44.0]
[1633086451338,33.94,147.86,147.73,146.8368]
[1633086451519,17.04796668,147.86,147.73,289.2001]
[1633086451724,17.04796668,147.86,147.73,373.4126167]
[1633086451921,17.04796668,147.86,147.74,84.2125167]
[1633086452120,17.04796668,147.86,147.76,71.25]
[1633086452318,0.02088,147.96,147.9,15.66077117]
[1633086452528,110.41576447,148.17,147.91,70.13]
[1633086452529,0.02088,147.99,147.91,70.13]
[1633086452718,2.85,148.1,147.93,71.25]
[1633086452719,33.94,148.1,147.93,71.25]
[1633086452918,33.94,148.1,147.91,70.1512976]
[1633086452919,33.94,148.1,148.0,50.0]
[1633086453119,33.94,148.1,148.01,2.85]
[1633086453519,2.85,148.15,148.01,2.85]
[1633086453720,0.02088,148.16,148.01,2.85]
[1633086453919,150.0050952,148.18,148.0,50.0]
[1633086454120,150.0050952,148.18,148.01,2.85]
[1633086454519,25.49761676,148.17,148.01,2.85]
[1633086457346,25.47673676,148.17,148.02,71.25]
[1633086457523,25.47673676,148.17,148.0,50.0]
[1633086457728,25.47673676,148.17,148.01,2.3]
[1633086458525,25.47673676,148.17,148.02,0.0212976]
[1633086458722,25.47673676,148.17,148.03,2.3]
[1633086460528,56.4023283,148.17,148.03,2.3]
[1633086460731,72.54959862,148.17,148.03,2.3]
[1633086460932,72.57047862,148.17,148.03,2.3]
[1633086461326,72.57047862,148.17,148.0,50.0]
[1633086461327,32.42061515,148.16,148.0,50.0]
[1633086461728,21.47589311,148.14,148.0,50.0]
[1633086461927,2.32088,148.13,148.0,50.0]
[1633086462127,80.37721909,148.13,148.0,50.0]
[1633086462328,17.80838144,148.12,148.0,50.0]
[1633086462528,29.91911454,148.1,148.0,50.0]
[1633086463128,47.72749598,148.1,148.0,50.0]
[1633086463731,79.50530974,148.1,148.0,50.0]
[1633086463932,81.80530974,148.1,148.0,50.0]
[1633086464129,110.64695564,148.1,148.0,50.0]
[1633086464630,81.80530974,148.1,148.0,50.0]
[1633086466033,81.80530974,148.1,147.95,2.3]
[1633086466232,81.80530974,148.1,147.91,0.0212976]
[1633086466233,16.9086,148.07,147.91,0.0212976]
[1633086466434,27.97587502,148.05,147.92,2.3]
[1633086467831,30.27587502,148.05,147.92,2.3]
[1633086468632,78.31461505,148.05,147.9,15.66077117]
[1633086469032,78.31461505,148.05,147.9,17.96077117]
[1633086469435,46.53680129,148.05,147.9,17.96077117]
[1633086469839,78.31461505,148.05,147.9,15.66077117]
[1633086470841,27.41039606,148.11,147.93,2.5993106]
[1633086471042,83.47213152,148.28,148.12,27.41039606]
[1633086471043,2.3,148.25,148.12,27.41039606]
[1633086471444,2.3,148.28,148.13,2.3]
[1633086471845,0.1056544,148.24,148.13,2.3]
[1633086472044,0.1056544,148.24,148.14,0.02088]
[1633086472244,0.1056544,148.24,148.15,2.3]
[1633086472656,0.1056544,148.24,148.17,0.02088]
[1633086472856,0.1056544,148.24,148.18,2.3]
[1633086473055,0.1056544,148.24,148.19,2.3]
[1633086473259,18.98880161,148.28,148.19,2.3]
[1633086473656,18.98880161,148.28,148.19,2.32088]
[1633086473856,18.98880161,148.28,148.19,2.3]
[1633086474255,33.32283388,148.32,148.19,2.3]
[1633086474656,33.43091752,148.31,148.19,2.3]
[1633086475256,22.72613554,148.3,148.19,2.3]
[1633086475462,51.66932228,148.3,148.15,0.02088]
[1633086475662,33.32283388,148.29,148.15,2.3]
[1633086475865,62.26602062,148.29,148.15,2.3]
[1633086476262,33.32283388,148.28,148.15,2.3]
[1633086476462,22.11163386,148.27,148.15,2.3]
[1633086477465,55.43446774,148.27,148.15,2.3]
[1633086477865,86.80826597,148.27,148.15,2.3]
[1633086478063,2.3,148.26,148.12,27.41039606]
[1633086478466,26.06069118,148.24,148.12,27.41039606]
[1633086479664,59.38352506,148.24,148.12,27.41039606]
[1633086480064,2.3,148.23,148.12,27.41039606]
[1633086481264,105.2415918,148.24,148.12,27.41039606]
[1633086481463,14.71325891,148.27,148.13,2.3]
[1633086481865,62.26602062,148.29,148.13,2.3]
[1633086482265,2.3,148.28,148.13,2.3]
[1633086482465,64.05769065,148.28,148.13,2.3]
[1633086482665,33.32283388,148.27,148.13,2.3]
[1633086483466,21.35966758,148.25,148.13,2.3]
[1633086483866,2.3,148.24,148.12,27.41039606]
[1633086484266,35.62283388,148.24,148.12,27.41039606]
[1633086484865,64.56602062,148.24,148.12,27.41039606]
[1633086487970,0.10808364,148.31,148.25,29.26587353]
[1633086489772,0.10808364,148.31,148.25,26.63587353]
[1633086489974,0.10808364,148.31,148.25,15.63587353]
[1633086490175,22.9063955,148.31,148.25,10.63587353]
[1633086490374,2.3,148.3,148.25,0.00587353]
[1633086490775,103.0,148.29,148.09,74.7105]
[1633086490976,26.84404999,148.27,148.1,2.32088]
[1633086491175,2.3,148.26,148.11,0.02088]
[1633086491380,16.8994,148.17,148.08,0.02088]
[1633086491582,28.01808007,148.16,148.04,2.3]
[1633086491775,45.25189453,148.16,148.03,0.02088]
[1633086492175,17.09714089,148.15,148.03,0.02088]
[1633086492775,2.3,148.14,148.03,0.02088]
[1633086492978,23.69821053,148.13,147.98,0.02088]
[1633086493177,23.69821053,148.13,147.99,2.3]
[1633086493376,23.69821053,148.13,148.0,0.02088]
[1633086493777,2.3,148.12,147.99,0.02088]
[1633086493981,2.3,148.12,147.96,61.0]
[1633086494178,16.9061,148.11,147.96,61.02088]
[1633086494379,27.4927992,148.09,147.96,0.02088]
[1633086494579,2.3,148.08,147.95,0.02088]
[1633086494980,2.3,148.08,147.99,0.02088]
[1633086495189,2.3,148.08,147.96,0.02088]
[1633086495982,2.3,148.08,147.97,337.40250282]
[1633086496181,2.3,148.08,147.98,0.02088]
[1633086497379,2.3,148.08,147.97,337.40250282]
[1633086497580,2.3,148.08,147.98,0.02088]
[1633086499182,2.3,148.08,147.99,0.02088]
[1633086499379,2.3,148.08,147.97,337.40250282]
[1633086499580,2.3,148.08,147.98,0.02088]
[1633086500380,2.3,148.08,147.97,337.40250282]
[1633086501580,2.3,148.08,148.04,0.02088]
[1633086501784,19.2061,148.11,147.98,0.02088]
[1633086501982,2.3,148.11,147.98,0.02088]
[1633086502780,23.87779711,148.1,147.98,0.02088]
[1633086502979,2.3,148.11,147.98,0.02088]
[1633086503980,23.10614495,148.1,147.98,0.02088]
[1633086505380,23.10614495,148.1,147.97,337.40250282]
[1633086505580,23.10614495,148.1,147.98,0.02088]
[1633086506280,2.3,148.11,147.98,0.02088]
[1633086506481,2.3,148.11,147.98,2.32088]
[1633086506684,2.3,148.11,147.99,0.02088]
[1633086506884,2.3,148.15,148.0,2.3]
[1633086507083,2.3,148.18,148.01,0.02088]
[1633086507283,25.73278189,148.17,148.02,2.3]
[1633086507482,25.73278189,148.17,148.03,0.02088]
[1633086507682,25.73278189,148.17,148.04,2.3]
[1633086507882,25.73278189,148.17,148.05,0.02088]
[1633086508082,25.73278189,148.17,148.05,2.32088]
[1633086508282,25.73278189,148.17,148.06,0.02088]
[1633086508482,25.73278189,148.17,148.07,0.02088]
[1633086509083,2.3,148.22,148.07,2.32088]
[1633086509284,2.3,148.22,148.08,0.02088]
[1633086509684,2.3,148.22,148.09,2.3]
[1633086509884,2.3,148.22,148.1,0.02088]
[1633086511884,2.3,148.22,148.09,2.3]
[1633086513887,32.96126111,148.22,148.09,2.3]
[1633086514287,62.4863288,148.22,148.09,2.3]
[1633086517491,62.4863288,148.22,148.05,2.3]
[1633086517893,17.40380756,148.22,148.05,2.3]
[1633086518093,2.3,148.22,148.05,2.3]
[1633086518292,24.95211501,148.23,148.05,2.3]
[1633086518494,24.93123501,148.23,148.05,2.32088]
[1633086519293,2.3,148.22,148.05,2.32088]
[1633086520093,62.4863288,148.22,148.17,416.33280079]
[1633086520492,62.4863288,148.22,148.05,2.3]
[1633086521694,62.4863288,148.22,148.01,76.02088]
[1633086521695,27.87339815,148.2,148.01,76.02088]
[1633086521895,4.73910038,148.18,148.1,379.33622043]
[1633086522097,29.37061036,148.16,148.1,344.39392043]
[1633086522295,2.3,148.15,148.1,344.39392043]
[1633086522500,24.83338103,148.14,147.98,2.32088]
[1633086522698,2.3,148.13,147.98,2.32088]
[1633086523096,2.3,148.13,147.98,2.3]
[1633086523497,2.3,148.13,147.99,30.17969561]
[1633086523696,19.75363316,148.12,147.99,30.17969561]
[1633086523896,3.97447181,148.11,147.99,30.17969561]
[1633086524096,3.97447181,148.11,148.01,340.44016877]
[1633086525495,3.97447181,148.11,148.02,27.08537957]
[1633086526296,22.05363316,148.12,148.02,27.08537957]
[1633086526498,19.75363316,148.12,148.02,27.08537957]
[1633086526697,2.3,148.15,148.02,27.08537957]
[1633086526897,2.3,148.18,148.03,2.3]
[1633086527097,2.3,148.18,148.03,76.0318]
[1633086527297,25.3268737,148.17,148.03,76.0318]
[1633086528097,2.3,148.16,148.03,73.7318]
[1633086528298,2.3,148.16,148.01,340.44016877]
[1633086528500,29.52506769,148.15,148.12,461.4114456]
[1633086528697,2.3,148.14,148.12,443.17276118]
[1633086528898,2.3,148.14,148.12,181.22056118]
[1633086529297,2.3,148.18,148.13,22.73898224]
[1633086530101,2.3,148.21,148.13,22.73898224]
[1633086530300,2.3,148.21,148.12,0.02088]
[1633086530499,2.3,148.21,148.07,0.02088]
[1633086530898,2.3,148.21,148.07,2.32088]
[1633086531098,2.3,148.21,148.08,0.02088]
[1633086531299,2.3,148.21,148.09,2.3]
[1633086531498,2.3,148.21,148.1,0.02088]
[1633086531699,2.3,148.21,148.15,486.14604139]
[1633086532098,2.3,148.21,148.16,22.42592666]
[1633086534700,2.3,148.21,148.15,486.14604139]
[1633086543206,20.32029983,148.25,148.15,486.14604139]
[1633086544808,57.88603842,148.31,148.16,65.0]
[1633086545013,2.3,148.3,148.17,24.45133694]
[1633086546211,19.01883373,148.3,148.17,24.45133694]
[1633086547909,19.01883373,148.3,148.17,26.75133694]
[1633086548511,2.3,148.34,148.17,26.75133694]
[1633086548713,2.3,148.34,148.18,0.02088]
[1633086548911,2.3,148.34,148.19,2.3]
[1633086549110,2.3,148.34,148.2,0.02088]
[1633086549312,2.3,148.34,148.2,21.29399256]
[1633086549509,2.3,148.34,148.21,0.02088]
[1633086550911,1.8,148.34,148.21,0.02088]
[1633086551314,18.51883373,148.34,148.21,0.02088]
[1633086552114,18.51883373,148.34,148.2,20.79399256]
[1633086553814,18.51883373,148.34,148.2,20.81487256]
[1633086554412,18.51883373,148.34,148.21,2.3]
[1633086562423,19.01883373,148.39,148.21,2.3]
[1633086562825,16.71883373,148.39,148.2,602.55407926]
[1633086563022,2.83,148.38,148.21,2.83]
[1633086563824,5.48574373,148.38,148.21,2.83]
[1633086564823,2.83,148.38,148.21,2.83]
[1633086565824,13.13127793,148.38,148.21,2.83]
[1633086567225,13.15215793,148.38,148.21,2.83]
[1633086567631,2.85088,148.38,148.21,2.83]
[1633086567827,2.83,148.38,148.21,2.83]
[1633086568630,10.70278707,148.38,148.21,2.83]
[1633086568830,2.83,148.38,148.21,2.83]
[1633086569430,2.83,148.38,148.21,29.54309955]
[1633086569631,2.83,148.41,148.21,193.60551557]
[1633086570030,2.83,148.41,148.22,0.02088]
[1633086570230,2.83,148.41,148.24,28.71289271]
[1633086570429,2.83,148.41,148.25,2.83]
[1633086571431,2.83,148.41,148.3,23.05995625]
[1633086572033,2.83,148.41,148.29,417.04695466]
[1633086572635,16.81193595,148.4,148.29,2.83]
[1633086572836,0.02088,148.39,148.29,2.83]
[1633086573038,16.81193595,148.39,148.3,23.29081179]
[1633086573636,2.85088,148.42,148.3,23.29081179]
[1633086574046,2.83,148.42,148.3,23.29081179]
[1633086576042,1.33,148.42,148.3,23.29081179]
[1633086576741,3.97677654,148.42,148.3,23.29081179]
[1633086578440,3.97677654,148.42,148.33,504.1551265]
[1633086578640,3.97677654,148.42,148.33,527.97415966]
[1633086579042,3.2816744,148.42,148.33,527.97415966]
[1633086579241,1.33,148.42,148.33,527.97415966]
[1633086579844,2.83,148.46,148.34,2.83]
[1633086580243,1.95091469,148.48,148.34,2.83]
[1633086580445,2.83,148.49,148.34,2.83]
[1633086580645,2.83,148.49,148.34,78.8274]
[1633086582843,15.92438928,148.52,148.34,78.8274]
[1633086583446,0.02088,148.54,148.36,27.21524113]
[1633086583644,78.87328,148.54,148.37,79.5572]
[1633086584042,0.06,148.53,148.37,146.8372]
[1633086585745,0.06,148.53,148.47,476.97665227]
[1633086586753,0.06,148.53,148.48,21.67865248]
[1633086587551,0.06,148.56,148.48,21.67865248]
[1633086587749,0.06,148.56,148.49,2.83]
[1633086588547,0.06,148.56,148.49,70.11]
[1633086589148,0.06,148.56,148.49,2.83]
[1633086590349,0.06,148.56,148.49,80.3846]
[1633086590747,0.06,148.56,148.49,80.40548]
[1633086591350,0.06,148.56,148.5,67.28]
[1633086591555,0.06,148.56,148.51,32.76164036]
[1633086593550,0.07,148.57,148.51,100.04164036]
[1633086594353,0.36693367,148.61,148.51,100.04164036]
[1633086595954,0.36693367,148.61,148.6,515.19089111]
[1633086596754,0.36693367,148.61,148.59,29.10126476]
[1633086597560,0.36693367,148.61,148.54,2.83]
[1633086598559,0.36693367,148.61,148.55,25.98197046]
[1633086598765,0.36693367,148.61,148.56,2.83]
[1633086599860,0.36693367,148.61,148.56,30.75241602]
[1633086600059,2.85088,148.71,148.57,103.0]
[1633086600263,0.02088,148.71,148.58,78.3857]
[1633086600462,152.569,148.8,148.59,24.15209003]
[1633086600463,0.02088,148.72,148.59,24.15209003]
[1633086600661,0.02088,148.74,148.6,2.83]
[1633086600861,2.83,148.75,148.6,2.83]
[1633086601061,2.83,148.78,148.61,27.92241602]
[1633086601260,2.83,148.78,148.62,2.83]
[1633086601659,2.83,148.78,148.63,29.17105431]
[1633086601861,30.44656723,148.78,148.64,2.83]
[1633086602067,57.64754212,148.78,148.64,2.83]
[1633086602262,0.02088,148.77,148.64,2.83]
[1633086602460,2.83,148.76,148.63,29.17105431]
[1633086602661,30.44656723,148.76,148.63,29.17105431]
[1633086602862,27.61656723,148.75,148.63,29.17105431]
[1633086603061,2.83,148.74,148.63,29.17105431]
[1633086603260,0.02088,148.73,148.61,2.83]
[1633086603461,27.61656723,148.73,148.61,2.83]
[1633086603859,2.83,148.72,148.61,2.83]
[1633086604260,2.83,148.72,148.59,21.73546695]
[1633086604464,0.02088,148.71,148.59,21.73546695]
[1633086604661,2.83,148.7,148.59,21.73546695]
[1633086604862,0.02088,148.69,148.59,21.73546695]
[1633086605065,2.85088,148.69,148.59,21.73546695]
[1633086605261,2.83,148.69,148.59,21.73546695]
[1633086605463,2.83,148.69,148.56,2.83]
[1633086606464,2.83,148.69,148.57,25.32786791]
[1633086606670,2.83,148.69,148.58,2.83]
[1633086608089,0.02088,148.74,148.58,2.83]
[1633086608290,0.02088,148.76,148.58,70.11]
[1633086608487,2.83,148.77,148.59,0.02088]
[1633086608687,2.83,148.77,148.6,2.83]
[1633086608887,2.83,148.77,148.61,22.35148545]
[1633086609088,2.83,148.77,148.62,2.83]
[1633086612288,2.83,148.77,148.64,485.25915341]
[1633086612488,0.02088,148.79,148.65,59.0]
[1633086612489,18.77301794,148.79,148.65,59.0]
[1633086612691,2.83,148.78,148.65,59.0]
[1633086613090,2.83,148.78,148.64,485.25915341]
[1633086613494,1.9469358,148.77,148.64,485.25915341]
[1633086613691,2.83,148.76,148.64,485.25915341]
[1633086613891,2.83,148.76,148.62,2.83]
[1633086614093,2.83,148.76,148.63,27.1484955]
[1633086614497,4.77737484,148.76,148.63,27.1484955]
[1633086614696,4.77737484,148.76,148.62,2.83]
[1633086615496,4.77737484,148.76,148.59,73.8434]
[1633086615695,4.77737484,148.76,148.6,26.78097069]
[1633086616097,1.94766485,148.75,148.6,26.78097069]
[1633086616301,2.83,148.74,148.6,26.78097069]
[1633086616499,4.77795235,148.74,148.6,26.78097069]
[1633086616896,4.77795235,148.74,148.59,73.8434]
[1633086616897,21.60915235,148.74,148.58,2.83]
[1633086617098,21.60915235,148.74,148.56,0.04176]
[1633086617298,1.94836898,148.71,148.55,0.04176]